fUST/lending_fUST_20240201
["ID","MTS","AMOUNT","RATE_DAILY","PERIOD"]
[313102991,1706746241284,-500.0,0.0002024,2]
[313102993,1706746241294,-500.0,0.0002024,2]
[313102995,1706746241304,-649.29,0.0002024,2]
[313102997,1706746241315,-500.0,0.0002024,2]
[313102999,1706746241324,-554.69,0.0002024,2]
[313103001,1706746241334,-500.0,0.0002024,2]
[313103003,1706746241343,-500.0,0.0002024,2]
[313103005,1706746241352,-500.0,0.00020241,2]
[313103007,1706746241363,-500.0,0.00020241,2]
[313103010,1706746241373,-500.0,0.00020241,2]
[313103011,1706746241381,-500.0,0.00020241,2]
[313103013,1706746241390,-586.39,0.00020241,2]
[313103015,1706746241400,-500.0,0.00020241,2]
[313103017,1706746241409,-500.0,0.00020271,2]
[313103019,1706746241418,-500.0,0.00020271,2]
[313103021,1706746241427,-1629.49,0.00020271,2]
[313103023,1706746241437,-500.0,0.00020271,2]
[313103026,1706746241448,-2536.83,0.00020271,2]
[313103027,1706746241458,-500.0,0.00020514,2]
[313103029,1706746241467,-500.0,0.00020514,2]
[313103032,1706746241476,-500.0,0.00020514,2]
[313103034,1706746241485,-500.0,0.00020514,2]
[313103036,1706746241496,-500.0,0.00020514,2]
[313103038,1706746241505,-500.0,0.00020514,2]
[313103040,1706746241514,-857.65,0.00020514,2]
[313103041,1706746241523,-500.0,0.00020514,2]
[313103043,1706746241533,-500.0,0.00020514,2]
[313103045,1706746241542,-37.91015116,0.00020514,2]
[313103134,1706746531352,200.0,0.00021962,7]
[313103135,1706746831862,200.0,0.00021962,7]
[313103158,1706747431955,-155.0,0.00018861,2]
[313103159,1706747431965,-155.00310006,0.00018898,3]
[313103160,1706747431974,-1817.17132258,0.000189,2]
[313103161,1706747431984,-500.0,0.00019966,2]
[313103162,1706747431994,-500.09782222,0.00019966,2]
[313103163,1706747432004,-500.0,0.00019966,2]
[313103164,1706747432013,-500.0,0.00019966,2]
[313103165,1706747432023,-500.0,0.00019966,2]
[313103166,1706747432032,-500.0,0.00019966,2]
[313103167,1706747432041,-416.8697277,0.00019966,2]
[313103168,1706747432051,-4594.0,0.0001999,3]
[313103169,1706747432060,-3828.33,0.0001999,3]
[313103170,1706747432069,-3190.28,0.0001999,3]
[313103171,1706747432079,-500.0,0.00019996,2]
[313103172,1706747432088,-650.83,0.00019996,2]
[313103173,1706747432098,-500.0,0.00019996,2]
[313103174,1706747432107,-562.07170985,0.00019998,2]
[313103175,1706747432117,-1256.51,0.00019998,2]
[313103176,1706747432127,-500.0,0.00019998,2]
[313103177,1706747432136,-566.9892121,0.00019998,2]
[313103178,1706747432146,-500.0,0.00019999,2]
[313103179,1706747432156,-302.03543893,0.00019999,2]
[313103180,1706747432165,-500.0,0.00019999,2]
[313103181,1706747432175,-500.0,0.00019999,2]
[313103182,1706747432185,-500.0,0.00019999,2]
[313103183,1706747432194,-500.0,0.00019999,2]
[313103184,1706747432203,-500.0,0.00019999,2]
[313103185,1706747432212,-500.0,0.00019999,2]
[313103186,1706747432222,-500.0,0.00019999,2]
[313103187,1706747432231,-500.0,0.00019999,2]
[313103188,1706747432241,-500.0,0.00019999,2]
[313103189,1706747432250,-500.0,0.00019999,2]
[313103190,1706747432259,-500.0,0.00019999,2]
[313103191,1706747432268,-500.0,0.00019999,2]
[313103192,1706747432279,-500.0,0.00019999,2]
[313103193,1706747432289,-500.0,0.00019999,2]
[313103194,1706747432299,-500.0,0.00019999,2]
[313103195,1706747432308,-500.0,0.00019999,2]
[313103196,1706747432318,-1611.49,0.00019999,2]
[313103197,1706747432327,-500.0,0.00019999,2]
[313103198,1706747432337,-500.0,0.00019999,2]
[313103199,1706747432347,-893.75,0.00019999,2]
[313103200,1706747432357,-500.0,0.00019999,2]
[313103201,1706747432366,-2839.39,0.00019999,2]
[313103202,1706747432376,-2325.43,0.00019999,2]
[313103203,1706747432385,-500.0,0.00019999,2]
[313103204,1706747432395,-500.0,0.00019999,2]
[313103205,1706747432405,-500.0,0.00019999,2]
[313103206,1706747432416,-500.0,0.00019999,2]
[313103207,1706747432426,-595.18,0.00019999,2]
[313103208,1706747432436,-500.0,0.00019999,2]
[313103209,1706747432545,-508.47,0.00019999,2]
[313103210,1706747432559,-583.25,0.00019999,2]
[313103211,1706747432572,-724.86,0.00019999,2]
[313103212,1706747432582,-500.0,0.00019999,2]
[313103213,1706747432591,-500.0,0.00019999,2]
[313103214,1706747432604,-500.0,0.00019999,2]
[313103215,1706747432615,-500.0,0.00019999,2]
[313103216,1706747432624,-500.0,0.00019999,2]
[313103217,1706747432634,-500.0,0.00019999,2]
[313103218,1706747432645,-155.05735708,0.0002,2]
[313103219,1706747432656,-1200.08348294,0.0002,2]
[313103220,1706747432665,-679.86163762,0.0002,2]
[313103221,1706747432675,-14429.91819551,0.0002,2]
[313103272,1706747438060,-829.902211,0.0001886,2]
[313103274,1706747438069,-152.59310351,0.00019999,2]
[313103313,1706747441269,-347.40689649,0.00019999,2]
[313103314,1706747441279,-21813.55556953,0.0002,2]
[313103335,1706747443075,-500.0,0.00019999,2]
[313103336,1706747443085,-13913.14788939,0.0002,2]
[313103337,1706747443094,-445.65532574,0.0002014,2]
[313103338,1706747443104,-500.0,0.0002024,2]
[313103339,1706747443113,-500.0,0.00020259,2]
[313103340,1706747443122,-199.43949992,0.00020259,2]
[313103341,1706747443131,-293.62352165,0.0002026,2]
[313103342,1706747443140,-650.83,0.0002027,2]
[313103343,1706747443149,-500.0,0.0002027,2]
[313103344,1706747443158,-1256.51,0.00020272,2]
[313103345,1706747443167,-500.0,0.00020272,2]
[313103346,1706747443176,-500.0,0.00020273,2]
[313103347,1706747443185,-500.0,0.00020273,2]
[313103348,1706747443194,-500.0,0.00020273,2]
[313103349,1706747443203,-500.0,0.00020273,2]
[313103350,1706747443212,-500.0,0.00020273,2]
[313103351,1706747443223,-500.0,0.00020273,2]
[313103352,1706747443233,-500.0,0.00020273,2]
[313103353,1706747443242,-500.0,0.00020273,2]
[313103354,1706747443251,-1611.49,0.00020273,2]
[313103355,1706747443259,-893.75,0.00020273,2]
[313103356,1706747443269,-500.0,0.00020273,2]
[313103357,1706747443278,-2839.39,0.00020273,2]
[313103358,1706747443286,-2325.43,0.00020273,2]
[313103359,1706747443295,-500.0,0.00020273,2]
[313103360,1706747443304,-500.0,0.00020273,2]
[313103361,1706747443313,-500.0,0.00020273,2]
[313103362,1706747443322,-500.0,0.00020273,2]
[313103363,1706747443331,-595.18,0.00020273,2]
[313103364,1706747443340,-508.47,0.00020273,2]
[313103365,1706747443349,-583.25,0.00020273,2]
[313103366,1706747443358,-724.86,0.00020273,2]
[313103367,1706747443367,-500.0,0.00020273,2]
[313103368,1706747443376,-500.0,0.00020273,2]
[313103369,1706747443385,-500.0,0.00020273,2]
[313103370,1706747443394,-500.0,0.00020273,2]
[313103371,1706747443403,-500.0,0.00020273,2]
[313103372,1706747443412,-500.0,0.00020273,2]
[313103373,1706747443422,-500.0,0.00020273,2]
[313103374,1706747443432,-153.0,0.000203,2]
[313103375,1706747443441,-153.0,0.000203,2]
[313103376,1706747443450,-199.6142226,0.000203,2]
[313103377,1706747443458,-199.4415769,0.000203,2]
[313103378,1706747443470,-153.0,0.000203,2]
[313103379,1706747443479,-500.0,0.00020514,2]
[313103380,1706747443488,-650.83,0.00020544,2]
[313103381,1706747443498,-500.0,0.00020544,2]
[313103382,1706747443507,-1256.51,0.00020546,2]
[313103383,1706747443516,-500.0,0.00020546,2]
[313103384,1706747443525,-500.0,0.00020547,2]
[313103385,1706747443534,-500.0,0.00020547,2]
[313103386,1706747443543,-500.0,0.00020547,2]
[313103387,1706747443551,-500.0,0.00020547,2]
[313103388,1706747443562,-500.0,0.00020547,2]
[313103389,1706747443572,-1611.49,0.00020547,2]
[313103390,1706747443581,-893.75,0.00020547,2]
[313103391,1706747443590,-2839.39,0.00020547,2]
[313103392,1706747443599,-2325.43,0.00020547,2]
[313103393,1706747443609,-500.0,0.00020547,2]
[313103394,1706747443618,-500.0,0.00020547,2]
[313103395,1706747443627,-500.0,0.00020547,2]
[313103396,1706747443637,-595.18,0.00020547,2]
[313103397,1706747443646,-508.47,0.00020547,2]
[313103398,1706747443656,-583.25,0.00020547,2]
[313103399,1706747443665,-724.86,0.00020547,2]
[313103400,1706747443674,-500.0,0.00020547,2]
[313103401,1706747443683,-500.0,0.00020547,2]
[313103402,1706747443692,-500.0,0.00020547,2]
[313103403,1706747443701,-500.0,0.00020547,2]
[313103404,1706747443710,-500.0,0.00020547,2]
[313103405,1706747443720,-500.0,0.00020547,2]
[313103406,1706747443729,-500.0,0.00020547,2]
[313103407,1706747443738,-445.65532574,0.00020571,2]
[313103408,1706747443747,-153.0,0.000206,2]
[313103409,1706747443755,-210.8826215,0.000206,2]
[313103410,1706747443764,-153.0,0.000206,2]
[313103411,1706747443774,-500.0,0.00020788,2]
[313103412,1706747443783,-650.83,0.00020818,2]
[313103413,1706747443792,-500.0,0.00020818,2]
[313103414,1706747443801,-1256.51,0.0002082,2]
[313103415,1706747443810,-500.0,0.0002082,2]
[313103416,1706747443819,-500.0,0.00020821,2]
[313103417,1706747443829,-500.0,0.00020821,2]
[313103418,1706747443838,-500.0,0.00020821,2]
[313103419,1706747443847,-484.47133968,0.00020821,2]
[313103420,1706747443856,-500.0,0.00020821,2]
[313103421,1706747443865,-1611.49,0.00020821,2]
[313103422,1706747443874,-893.75,0.00020821,2]
[313103423,1706747443883,-2839.39,0.00020821,2]
[313103424,1706747443892,-628.98491373,0.00020821,2]
[313103475,1706747469497,200.47055682,0.000222,4]
[313103487,1706747969116,247.5,0.00029,30]
[313103488,1706747997739,247.5,0.00029,30]
[313103489,1706748001889,247.5,0.00029,30]
[313103490,1706748003904,247.5,0.00029,30]
[313103509,1706748634312,-639.50167045,0.00017498,2]
[313103510,1706748634322,-829.902211,0.00017499,2]
[313103511,1706748634331,-243.52267023,0.00017499,2]
[313103512,1706748634340,-4803.4914738,0.000175,2]
[313103513,1706748634349,-8031.87948476,0.00017598,2]
[313103514,1706748634361,-16868.12051524,0.00017598,2]
[313103515,1706748634370,-2981.64331195,0.0001807,2]
[313103516,1706748634380,-154.98450155,0.0001863,2]
[313103517,1706748634389,-154.98450155,0.0001863,2]
[313103518,1706748634398,-155.0,0.00018736,3]
[313103519,1706748634407,-1211.44754839,0.000189,2]
[313103520,1706748634416,-166.535521,0.00019178,2]
[313103521,1706748634425,-153.0,0.00019778,2]
[313103522,1706748634434,-802.47,0.00019987,2]
[313103523,1706748634443,-500.0,0.00019987,2]
[313103524,1706748634452,-2580.33,0.00019987,2]
[313103525,1706748634461,-500.0,0.00019987,2]
[313103526,1706748634471,-693.12,0.00019987,2]
[313103527,1706748634480,-500.0,0.00019987,2]
[313103528,1706748634489,-500.0,0.00019987,2]
[313103529,1706748634499,-500.0,0.00019988,2]
[313103530,1706748634508,-500.0,0.00019988,2]
[313103531,1706748634518,-500.0,0.00019988,2]
[313103532,1706748634527,-1141.88,0.00019988,2]
[313103533,1706748634536,-500.0,0.00019988,2]
[313103534,1706748634545,-500.0,0.00019988,2]
[313103535,1706748634555,-500.0,0.00019989,2]
[313103536,1706748634565,-500.0,0.00019989,2]
[313103537,1706748634574,-500.0,0.00019989,2]
[313103538,1706748634583,-500.0,0.00019989,2]
[313103539,1706748634592,-500.0,0.00019989,2]
[313103540,1706748634602,-500.0,0.00019989,2]
[313103541,1706748634611,-500.0,0.00019989,2]
[313103542,1706748634620,-500.0,0.00019989,2]
[313103543,1706748634631,-1477.53,0.00019989,2]
[313103544,1706748634640,-500.0,0.00019989,2]
[313103545,1706748634650,-2401.51,0.00019989,2]
[313103546,1706748634660,-500.0,0.00019989,2]
[313103547,1706748634669,-500.0,0.00019989,2]
[313103548,1706748634679,-500.0,0.00019989,2]
[313103549,1706748634688,-567.72,0.00019989,2]
[313103550,1706748634697,-500.0,0.00019989,2]
[313103551,1706748634706,-556.34,0.00019989,2]
[313103552,1706748634717,-500.0,0.00019989,2]
[313103553,1706748634727,-500.0,0.00019989,2]
[313103554,1706748634737,-500.0,0.00019989,2]
[313103555,1706748634747,-500.0,0.00019989,2]
[313103556,1706748634756,-500.0,0.00019989,2]
[313103557,1706748634766,-500.0,0.00019989,2]
[313103558,1706748634775,-1503.6050481,0.00019998,2]
[313103559,1706748634783,-500.0,0.00019998,2]
[313103560,1706748634793,-500.0,0.00019998,2]
[313103561,1706748634802,-500.0,0.00019998,2]
[313103562,1706748634811,-594.07,0.00019998,2]
[313103563,1706748634821,-500.0,0.00019998,2]
[313103564,1706748634831,-500.0,0.00019998,2]
[313103565,1706748634841,-500.0,0.00019998,2]
[313103566,1706748634850,-500.0,0.00019998,2]
[313103567,1706748634861,-500.0,0.00019998,2]
[313103568,1706748634870,-500.0,0.00019999,2]
[313103569,1706748634879,-1200.08348294,0.0002,2]
[313103570,1706748634888,-30145.83551165,0.0002,2]
[313103599,1706748638321,-20010.78614278,0.0002,2]
[313103601,1706748638331,-217.30896322,0.00020161,2]
[313103744,1706748641490,-81.79706547,0.00020161,2]
[313103745,1706748641500,-802.47,0.00020261,2]
[313103746,1706748641510,-2580.33,0.00020261,2]
[313103747,1706748641520,-693.12,0.00020261,2]
[313103748,1706748641530,-500.0,0.00020261,2]
[313103749,1706748641539,-500.0,0.00020261,2]
[313103750,1706748641549,-1141.88,0.00020262,2]
[313103751,1706748641559,-500.0,0.00020262,2]
[313103752,1706748641568,-500.0,0.00020262,2]
[313103753,1706748641577,-500.0,0.00020263,2]
[313103754,1706748641586,-500.0,0.00020263,2]
[313103755,1706748641596,-500.0,0.00020263,2]
[313103756,1706748641605,-500.0,0.00020263,2]
[313103757,1706748641615,-1477.53,0.00020263,2]
[313103758,1706748641624,-2401.51,0.00020263,2]
[313103759,1706748641633,-500.0,0.00020263,2]
[313103760,1706748641643,-500.0,0.00020263,2]
[313103761,1706748641651,-567.72,0.00020263,2]
[313103762,1706748641661,-500.0,0.00020263,2]
[313103763,1706748641670,-556.34,0.00020263,2]
[313103764,1706748641680,-500.0,0.00020263,2]
[313103765,1706748641689,-500.0,0.00020263,2]
[313103766,1706748641698,-500.0,0.00020263,2]
[313103767,1706748641707,-500.0,0.00020263,2]
[313103768,1706748641717,-594.07,0.00020272,2]
[313103769,1706748641727,-562.53342037,0.00020272,2]
[313103770,1706748641737,-500.0,0.00020272,2]
[313103771,1706748641747,-500.0,0.00020272,2]
[313103772,1706748641757,-802.47,0.00020535,2]
[313103773,1706748641767,-2219.21637821,0.00020535,2]
[313103787,1706748643357,-361.11362179,0.00020535,2]
[313103788,1706748643368,-168.7938255,0.00020535,2]
[313103800,1706748646294,-500.0,0.00019987,2]
[313103801,1706748646304,-500.0,0.00020261,2]
[313103802,1706748646313,-829.902211,0.00020534,2]
[313103803,1706748646323,-2665.68887671,0.00020534,2]
[313103804,1706748646332,-524.3261745,0.00020535,2]
[313103805,1706748646341,-500.0,0.00020535,2]
[313103806,1706748646350,-500.0,0.00020535,2]
[313103807,1706748646360,-500.0,0.00020535,2]
[313103808,1706748646369,-1141.88,0.00020536,2]
[313103809,1706748646378,-500.0,0.00020536,2]
[313103810,1706748646386,-500.0,0.00020536,2]
[313103811,1706748646396,-500.0,0.00020537,2]
[313103812,1706748646406,-500.0,0.00020537,2]
[313103813,1706748646417,-500.0,0.00020537,2]
[313103814,1706748646426,-1477.53,0.00020537,2]
[313103815,1706748646435,-2401.51,0.00020537,2]
[313103816,1706748646444,-500.0,0.00020537,2]
[313103817,1706748646453,-382.33196823,0.00020537,2]
[313103818,1706748646463,-523.43144349,0.00020537,2]
[313103819,1706748646475,-44.28855651,0.00020537,2]
[313103820,1706748646484,-378.41144349,0.00020537,2]
[313104045,1706749846546,-829.902211,0.00018726,2]
[313104046,1706749846556,-155.01550155,0.00018727,3]
[313104047,1706749846566,-807.63169892,0.000189,2]
[313104048,1706749846575,-239.28482296,0.000199,2]
[313104049,1706749846584,-348.94991048,0.00019986,2]
[313104050,1706749846609,-195.62008952,0.00019986,2]
[313104051,1706749846618,-500.0,0.00019988,2]
[313104052,1706749846628,-500.0,0.00019988,2]
[313104053,1706749846637,-6645.02,0.0001999,3]
[313104055,1706749846647,-336.45261562,0.00019998,2]
[313104057,1706749846658,-768.07,0.00019998,2]
[313104059,1706749846666,-1800.8705805,0.00019998,2]
[313104064,1706749858260,282.86948146,0.00020537,20]
[313104065,1706749872241,230.54985767,0.00020537,20]
[313104341,1706751035118,-639.6448056,0.00018874,2]
[313104343,1706751035129,-155.00155002,0.00018875,2]
[313104346,1706751035140,-829.902211,0.00018876,2]
[313104348,1706751035150,-155.0,0.00018877,2]
[313104350,1706751035160,-325.11863556,0.000189,2]
[313104353,1706751035179,-213.30249706,0.000189,2]
[313104355,1706751035190,-166.53552,0.00019178,2]
[313104357,1706751035199,-161.50031296,0.00019889,2]
[313104358,1706751035209,-280.5589235,0.000199,2]
[313104360,1706751035219,-155.13488125,0.00019984,2]
[313104362,1706751035229,-155.2989749,0.00019984,2]
[313104364,1706751035238,-168.44567001,0.00019985,2]
[313104368,1706751035250,-19892.62116688,0.00019986,2]
[313104371,1706751035260,-4803.4914738,0.00019987,2]
[313104374,1706751035269,-500.0,0.00019989,2]
[313104377,1706751035279,-773.3,0.00019989,2]
[313104380,1706751035288,-2545.83,0.00019989,2]
[313104383,1706751035298,-500.0,0.00019989,2]
[313104386,1706751035308,-500.0,0.00019989,2]
[313104388,1706751035318,-500.0,0.00019989,2]
[313104391,1706751035327,-562.54,0.00019989,2]
[313104394,1706751035337,-500.0,0.00019989,2]
[313104397,1706751035347,-606.48,0.00019989,2]
[313104399,1706751035357,-500.0,0.00019989,2]
[313104403,1706751035367,-500.0,0.00019989,2]
[313104405,1706751035376,-500.0,0.00019989,2]
[313104406,1706751035385,-507.19947407,0.00019989,2]
[313104409,1706751035395,-155.01395126,0.00019996,2]
[313104411,1706751035405,-1159.82,0.00019996,2]
[313104413,1706751035414,-500.0,0.00019996,2]
[313104415,1706751035423,-500.0,0.00019997,2]
[313104417,1706751035433,-500.0,0.00019997,2]
[313104419,1706751035442,-500.0,0.00019997,2]
[313104421,1706751035451,-500.0,0.00019997,2]
[313104423,1706751035460,-500.0,0.00019997,2]
[313104425,1706751035471,-500.0,0.00019997,2]
[313104427,1706751035481,-550.39,0.00019997,2]
[313104428,1706751035490,-500.0,0.00019997,2]
[313104431,1706751035502,-500.0,0.00019997,2]
[313104433,1706751035511,-500.0,0.00019997,2]
[313104434,1706751035521,-302.30586902,0.00019998,2]
[313104437,1706751035531,-647.31121946,0.00019998,2]
[313104438,1706751035540,-500.0,0.00019998,2]
[313104441,1706751035550,-309.98450155,0.00019998,2]
[313104442,1706751035560,-500.0,0.00019998,2]
[313104444,1706751035570,-500.0,0.00019998,2]
[313104446,1706751035579,-500.0,0.00019998,2]
[313104448,1706751035589,-500.0,0.00019998,2]
[313104450,1706751035599,-500.0,0.00019998,2]
[313104453,1706751035610,-1427.88,0.00019998,2]
[313104454,1706751035619,-500.0,0.00019998,2]
[313104456,1706751035629,-2233.23,0.00019998,2]
[313104458,1706751035638,-541.11217855,0.00019998,2]
[313104460,1706751035648,-500.0,0.00019998,2]
[313104462,1706751035657,-500.0,0.00019998,2]
[313104465,1706751035666,-548.99,0.00019999,2]
[313104466,1706751035676,-500.0,0.00019999,2]
[313104469,1706751035694,-9758.58170293,0.0002,2]
[313104471,1706751035708,-421.0,0.0002,2]
[313104649,1706751039203,-500.0,0.00019989,2]
[313104650,1706751039213,-7030.2,0.0001999,3]
[313104651,1706751039223,-5585.31710819,0.0002,2]
[313104652,1706751039236,-1152.05938556,0.0002,2]
[313104829,1706751044235,-155.00155002,0.00018873,2]
[313104830,1706751044246,-4568.90073687,0.0002,2]
[313104831,1706751044260,-566.81142176,0.0002,2]
[313104832,1706751044272,-1895.6882195,0.0002,2]
[313104833,1706751044284,-600.0,0.0002,2]
[313104834,1706751044306,-4128.95910025,0.0002,2]
[313104837,1706751044317,-1061.92769504,0.0002,2]
[313104839,1706751044329,-521.1292128,0.0002,2]
[313104854,1706751044466,-3481.814428,0.0002,2]
[313104855,1706751044478,-16414.43264353,0.0002,2]
[313104856,1706751044487,-420.4280906,0.0002,2]
[313104857,1706751044497,-306.0,0.0002,2]
[313104858,1706751044506,-153.0,0.0002,2]
[313104859,1706751044515,-153.0,0.0002,2]
[313104860,1706751044526,-306.0,0.0002,2]
[313104861,1706751044535,-199.6142226,0.0002,2]
[313104863,1706751044545,-306.0,0.0002,2]
[313104864,1706751044554,-280.55892349,0.00020037,2]
[313104866,1706751044564,-410.4968441,0.000201,2]
[313104868,1706751044573,-199.6142226,0.000201,2]
[313104874,1706751044692,-199.6142226,0.000201,2]
[313104875,1706751044701,-199.2138786,0.000201,2]
[313104876,1706751044713,-280.55892349,0.00020173,2]
[313104877,1706751044722,-528.09714583,0.00020263,2]
[313104878,1706751044739,-500.0,0.00019989,2]
[313104879,1706751044748,-245.20285417,0.00020263,2]
[313104880,1706751044759,-119.54704583,0.00020263,2]
[313105027,1706751048875,-421.17,0.00019997,2]
[313105029,1706751048887,-78.83,0.00019997,2]
[313105030,1706751048896,-376.45,0.00020262,2]
[313105057,1706751052107,294.75365843,0.00022,4]
[313105106,1706752231833,-155.0,0.00017997,2]
[313105109,1706752231844,-639.6448056,0.00017998,2]
[313105111,1706752231855,-261.98485046,0.00017999,2]
[313105568,1706752237826,-567.93065159,0.00017999,2]
[313105569,1706752237836,-163.90863054,0.00018006,2]
[313105570,1706752237847,-155.00155002,0.00018235,3]
[313105571,1706752237857,-116.89390812,0.00018438,2]
[313105572,1706752237964,-110.32165498,0.00018438,2]
[313105573,1706752237975,-270.21537921,0.000189,2]
[313105610,1706752242747,-1244.08782279,0.000189,2]
[313105612,1706752242757,-154.3855345,0.000199,2]
[313105614,1706752242767,-204.1070587,0.000199,2]
[313105615,1706752242776,-153.4634771,0.000199,2]
[313105617,1706752242786,-54.79739278,0.000199,2]
[313105635,1706752243118,-99.84466312,0.000199,2]
[313105636,1706752243130,-153.0,0.000199,2]
[313105637,1706752243141,-199.6142226,0.000199,2]
[313105638,1706752243151,-507.20689539,0.00019989,2]
[313105639,1706752243161,-502.57824714,0.00019989,2]
[313105640,1706752243171,-55.14432975,0.00019989,2]
[313105641,1706752243184,-470.97567025,0.00019989,2]
[313105642,1706752243193,-500.0,0.00019989,2]
[313105643,1706752243203,-3987.21,0.0001999,3]
[313105644,1706752243213,-7046.06,0.0001999,3]
[313105645,1706752243223,-506.4548517,0.00019995,2]
[313105646,1706752243232,-882.54,0.00019995,2]
[313105647,1706752243247,-2946.47,0.00019995,2]
[313105648,1706752243257,-501.70695071,0.00019995,2]
[313105649,1706752243266,-500.0,0.00019995,2]
[313105650,1706752243276,-586.7,0.00019995,2]
[313105651,1706752243286,-500.0,0.00019995,2]
[313105653,1706752243296,-500.0,0.00019995,2]
[313105655,1706752243305,-500.0,0.00019995,2]
[313105657,1706752243315,-500.0,0.00019995,2]
[313105659,1706752243324,-504.65726416,0.00019995,2]
[313105661,1706752243334,-506.29820789,0.00019999,2]
[313105663,1706752243343,-504.97870892,0.00019999,2]
[313105665,1706752243352,-1324.77,0.00019999,2]
[313105667,1706752243362,-500.0,0.00019999,2]
[313105668,1706752243371,-496.87321007,0.00019999,2]
[313105669,1706752243380,-155.3088614,0.0002,2]
[313105670,1706752243390,-50170.94437252,0.0002,2]
[313105671,1706752243399,-680.01303789,0.0002,2]
[313105672,1706752243409,-1200.31274669,0.0002,2]
[313105673,1706752243419,-153.0,0.0002,2]
[313105674,1706752243428,-199.6142226,0.0002,2]
[313105675,1706752243438,-153.0,0.0002,2]
[313105676,1706752243447,-199.6142226,0.0002,2]
[313105677,1706752243456,-188.0588811,0.0002016,2]
[313105678,1706752243466,-506.80157882,0.0002025,2]
[313105679,1706752243475,-1648.17,0.0002025,2]
[313105680,1706752243488,-629.74036745,0.0002025,2]
[313105681,1706752243497,-2141.47,0.0002025,2]
[313105682,1706752243506,-220.14252402,0.0002026,2]
[313105683,1706752243516,-500.0,0.0002026,2]
[313105684,1706752243526,-500.0,0.0002026,2]
[313105685,1706752243535,-497.62365455,0.0002026,2]
[313105686,1706752243546,-504.34247711,0.0002026,2]
[313105687,1706752243556,-507.37834073,0.0002026,2]
[313105688,1706752243567,-525.92298484,0.0002026,2]
[313105689,1706752243577,-503.84611396,0.0002026,2]
[313105690,1706752243587,-539.29,0.0002026,2]
[313105691,1706752243610,-500.0,0.0002026,2]
[313105692,1706752243621,-500.0,0.0002026,2]
[313105693,1706752243632,-531.97,0.0002026,2]
[313105694,1706752243643,-500.0,0.0002026,2]
[313105695,1706752243654,-500.0,0.0002026,2]
[313105696,1706752243664,-500.0,0.0002026,2]
[313105697,1706752243674,-500.0,0.0002026,2]
[313105698,1706752243684,-505.41544656,0.0002026,2]
[313105699,1706752243696,-500.0,0.0002026,2]
[313105700,1706752243707,-16460.34140602,0.00020262,2]
[313105701,1706752243717,-152.017492,0.00020262,2]
[313105702,1706752243728,-170.902729,0.00020262,2]
[313105703,1706752243744,-170.902729,0.00020262,2]
[313105704,1706752243754,-153.542062,0.00020262,2]
[313105705,1706752243766,-526.12,0.00020263,2]
[313105706,1706752243776,-500.0,0.00020263,2]
[313105707,1706752243786,-882.54,0.00020269,2]
[313105708,1706752243796,-2946.47,0.00020269,2]
[313105709,1706752243806,-560.36911164,0.00020269,2]
[313105710,1706752243815,-586.7,0.00020269,2]